bitfinex-derivatives/quotes_SOLF0:USTF0_20250923
["timestamp","ask_amount","ask_price","bid_price","bid_amount"]
[1758614442814,0.9,219.17,219.07,4.1053]
[1758614443106,0.9,219.15,219.07,4.1053]
[1758614443310,3.27750082,219.14,219.07,4.1053]
[1758614443512,3.30638423,219.14,219.07,4.1053]
[1758614443707,3.27750082,219.13,219.07,4.1053]
[1758614444012,3.27750082,219.13,219.06,7.74]
[1758614444013,4.17750082,219.13,219.06,7.74]
[1758614444209,3.27750082,219.12,219.02,7.74]
[1758614444412,0.9,219.1,219.02,7.74]
[1758614444713,0.9,219.08,219.02,7.74]
[1758614445309,0.02931928,219.07,219.02,7.74]
[1758614445513,0.02931928,219.07,219.01,7.74]
[1758614446006,0.92931928,219.07,219.04,4.1059]
[1758614446213,0.92931928,219.07,219.01,7.74]
[1758614447310,0.92931928,219.07,219.02,4.1063]
[1758614447512,0.92931928,219.07,219.03,7.74]
[1758614448211,0.02931928,219.07,219.03,7.74]
[1758614448417,0.9,219.06,218.99,7.74]
[1758614448716,3.29328486,219.05,218.99,7.74]
[1758614449015,0.9,219.06,218.99,7.74]
[1758614449217,3.29344218,219.05,218.99,7.74]
[1758614449509,0.9,219.06,218.99,7.74]
[1758614449716,3.29246426,219.05,218.99,7.74]
[1758614450017,4.19267934,219.04,218.95,11.8474]
[1758614450212,0.9,219.04,218.95,11.8474]
[1758614450412,0.9,219.04,218.95,7.74]
[1758614451220,0.9,219.1,218.99,7.74]
[1758614451419,3.29137919,219.09,218.99,7.74]
[1758614451620,3.29137919,219.08,218.99,7.74]
[1758614451820,3.29137919,219.07,218.99,7.74]
[1758614452021,0.9,219.08,218.99,7.74]
[1758614452215,3.29032261,219.07,218.99,7.74]
[1758614452411,0.9,219.08,218.99,7.74]
[1758614452614,3.28995351,219.07,218.99,7.74]
[1758614452815,0.9,219.08,219.01,4.1065]
[1758614453016,3.28995256,219.07,219.01,4.1065]
[1758614453217,3.28995256,219.06,219.02,7.74]
[1758614453518,17.9278799,219.11,219.02,7.74]
[1758614453519,0.9,219.1,219.02,7.74]
[1758614453719,7.01375232,219.09,219.02,7.74]
[1758614453921,3.28979116,219.08,219.02,7.74]
[1758614454121,0.9,219.06,219.02,7.74]
[1758614454727,0.9288288,219.06,219.02,7.74]
[1758614455518,0.0288288,219.06,219.03,4.1061]
[1758614455718,0.0288288,219.06,219.04,7.74]
[1758614457631,0.0288288,219.06,219.03,4.1061]
[1758614458132,0.0288288,219.06,219.04,7.74]
[1758614458433,0.0288288,219.06,219.05,11.8457]
[1758614461034,59.48456996,219.16,219.1,4.1046]
[1758614461238,59.48456996,219.16,219.11,7.37]
[1758614461239,3.28580695,219.15,219.11,7.37]
[1758614461440,60.42456996,219.16,219.11,7.37]
[1758614461734,3.28571416,219.15,219.12,4.1044]
[1758614461930,0.94,219.19,219.11,7.37]
[1758614462130,3.28505307,219.18,219.11,7.37]
[1758614462338,0.94,219.25,219.16,4.1036]
[1758614462531,7.00211764,219.24,219.16,4.1036]
[1758614462731,3.28425296,219.23,219.16,4.1036]
[1758614462927,3.28425296,219.22,219.16,4.1036]
[1758614463127,0.94,219.25,219.18,0.03288194]
[1758614463337,3.28411522,219.24,219.18,0.03288194]
[1758614463533,0.94,219.22,219.18,0.03288194]
[1758614463728,3.28410672,219.21,219.18,0.03288194]
[1758614463929,0.6497644,219.26,219.18,0.03288194]
[1758614463930,0.94,219.19,219.18,0.03288194]
[1758614464131,0.94,219.25,219.18,0.03288194]
[1758614464340,11.10453042,219.24,219.18,0.03288194]
[1758614464641,0.94,219.22,219.18,0.03288194]
[1758614464941,4.22469873,219.21,219.18,0.03288194]
[1758614465240,0.94,219.21,219.18,0.03288194]
[1758614465743,0.94,219.26,219.19,7.37]
[1758614466038,7.00102874,219.25,219.18,0.03288194]
[1758614466238,4.22375337,219.24,219.18,0.03288194]
[1758614466540,0.94,219.22,219.18,0.03288194]
[1758614466736,0.94,219.27,219.18,0.03288194]
[1758614467040,7.00047719,219.26,219.18,0.03288194]
[1758614467241,3.28349746,219.25,219.18,0.03288194]
[1758614467440,3.28349746,219.24,219.18,0.03288194]
[1758614467641,3.28349746,219.23,219.18,0.03288194]
[1758614467938,0.94,219.23,219.18,7.40288194]
[1758614468335,3.2833448,219.22,219.18,0.03288194]
[1758614468642,0.94,219.27,219.19,11.4731]
[1758614468839,6.99930529,219.26,219.19,11.4731]
[1758614469040,3.28294823,219.25,219.19,7.37]
[1758614469240,0.94,219.23,219.19,7.37]
[1758614469441,3.28294823,219.22,219.19,7.37]
[1758614469641,0.94,219.23,219.19,7.37]
[1758614469840,4.18692874,219.22,219.18,0.03288194]
[1758614470043,0.94,219.22,219.18,7.40288194]
[1758614470541,0.94,219.22,219.18,0.03288194]
[1758614470941,0.94,219.22,219.18,7.40288194]
[1758614471632,0.94,219.25,219.18,7.40288194]
[1758614471837,3.24660915,219.24,219.18,7.40288194]
[1758614472038,0.94,219.22,219.18,0.03288194]
[1758614472535,0.94,219.26,219.18,4.13608194]
[1758614472740,3.24678712,219.25,219.19,7.37]
[1758614472939,3.24678712,219.24,219.18,0.03288194]
[1758614473134,0.94,219.26,219.19,7.37]
[1758614473342,3.24642892,219.25,219.2,4.1029]
[1758614473543,0.94,219.3,219.21,7.37]
[1758614473744,3.24556805,219.29,219.21,7.37]
[1758614474040,0.94,219.3,219.23,0.03429614]
[1758614474041,3.24556805,219.28,219.23,0.03429614]
[1758614474236,3.24556805,219.27,219.24,7.37]
[1758614474438,4.1003,219.35,219.24,7.37]
[1758614474644,7.89901665,219.34,219.24,7.37]
[1758614474843,6.95901665,219.33,219.24,7.37]
[1758614475147,3.24491292,219.32,219.24,7.37]
[1758614475334,3.24491292,219.31,219.24,7.37]
[1758614475538,0.94,219.34,219.24,7.37]
[1758614475736,6.99355621,219.33,219.24,7.37]
[1758614475934,3.2440858,219.32,219.24,7.37]
[1758614476134,3.2440858,219.31,219.24,7.37]
[1758614476341,0.94,219.34,219.24,7.37]
[1758614476534,3.24294721,219.33,219.24,7.37]
[1758614476736,3.24294721,219.32,219.28,7.37]
[1758614476941,3.24294721,219.31,219.27,4.1016]
[1758614477147,0.94,219.34,219.28,7.37]
[1758614477446,4.17211967,219.33,219.28,7.37]
[1758614477741,3.24211967,219.32,219.27,4.13187563]
[1758614477939,3.24211967,219.31,219.27,4.13187563]
[1758614478140,0.93,219.33,219.27,11.81187563]
[1758614478445,3.24125072,219.32,219.28,7.68]
[1758614478632,0.93,219.33,219.28,7.68]
[1758614478834,0.93,219.33,219.27,4.13187563]
[1758614479034,64.43112687,219.36,219.29,4.1012]
[1758614479035,60.33122687,219.36,219.29,4.1012]
[1758614479442,3.2408556,219.35,219.29,4.1012]
[1758614479641,3.2408556,219.34,219.3,7.68]
[1758614479842,60.33122687,219.36,219.3,7.68]
[1758614480037,3.23963212,219.35,219.29,11.7812]
[1758614480235,3.23963212,219.34,219.29,4.1012]
[1758614480538,60.33122687,219.36,219.29,11.7812]
[1758614480735,3.23837337,219.35,219.29,11.7812]
[1758614480937,3.23837337,219.34,219.29,4.1012]
[1758614481138,60.33122687,219.36,219.3,7.68]
[1758614481340,3.23750165,219.35,219.29,11.7812]
[1758614481543,0.93,219.37,219.32,7.68]
[1758614481737,3.23680438,219.36,219.28,7.68]
[1758614481944,1.5587155,219.38,219.28,7.68]
[1758614482142,3.23679694,219.37,219.28,7.68]
[1758614482344,3.23679694,219.36,219.3,0.02961936]
[1758614482544,1.5587155,219.38,219.3,0.02961936]
[1758614482748,3.23527199,219.37,219.3,0.02961936]
[1758614482945,1.5587155,219.38,219.3,0.02961936]
[1758614483149,3.23534137,219.37,219.3,0.02961936]
[1758614483349,1.5587155,219.38,219.3,0.02961936]
[1758614483652,3.23401031,219.37,219.3,0.02961936]
[1758614483848,1.5587155,219.38,219.3,0.02961936]
[1758614484043,3.23401031,219.37,219.3,0.02961936]
[1758614484248,1.5587155,219.38,219.31,7.68]
[1758614485751,1.5587155,219.38,219.31,11.7809]
[1758614486856,1.5587155,219.38,219.31,7.68]
[1758614489259,4.15762862,219.37,219.3,0.02961936]
[1758614489555,0.93,219.37,219.3,0.02961936]
[1758614489752,3.22778985,219.36,219.3,0.02961936]
[1758614490052,63.7776,219.36,219.3,0.02961936]
[1758614490357,0.93,219.31,219.3,0.02961936]
[1758614490556,0.93,219.37,219.3,0.02961936]
[1758614490755,6.9589777,219.36,219.3,0.02961936]
[1758614491052,6.9589777,219.35,219.3,0.02961936]
[1758614491257,1.72373225,219.39,219.3,7.53961936]
[1758614491458,6.95797019,219.37,219.3,7.53961936]
[1758614491753,1.72373225,219.39,219.31,4.1008]
[1758614492348,1.72373225,219.39,219.32,7.51]
[1758614493252,0.93,219.39,219.32,7.51]
[1758614493457,0.7935965,219.43,219.32,7.51]
[1758614493752,3.22630683,219.42,219.32,11.6105]
[1758614494053,1.7235965,219.43,219.35,4.1001]
[1758614494255,1.7235965,219.43,219.35,11.64412659]
[1758614494556,3.22630297,219.42,219.35,11.64412659]
[1758614494754,1.7235965,219.43,219.35,7.54402659]
[1758614494953,3.2263026,219.42,219.35,7.54402659]
[1758614495157,1.7235965,219.43,219.35,7.54402659]
[1758614495357,6.95602604,219.42,219.35,7.54402659]
[1758614495553,4.0989,219.42,219.35,0.03402659]
[1758614495758,7.88737773,219.41,219.35,0.03402659]
[1758614495945,7.88737773,219.4,219.35,0.03402659]
[1758614496153,0.93,219.4,219.35,7.54402659]
[1758614496956,0.93,219.4,219.36,7.51]
[1758614498261,3.22890612,219.39,219.36,7.51]
[1758614498460,3.22890612,219.39,219.35,0.03402659]
[1758614498461,3.23055065,219.38,219.35,0.03402659]
[1758614498762,4.0992,219.41,219.35,0.03402659]
[1758614498960,7.87035114,219.4,219.35,7.54402659]
[1758614499154,6.94035114,219.39,219.35,7.54402659]
[1758614499462,6.94201029,219.38,219.35,7.54402659]
[1758614499759,0.93,219.4,219.35,7.54402659]
[1758614500058,6.94386406,219.39,219.35,0.03402659]
[1758614500259,3.73622784,219.38,219.35,7.54402659]
[1758614500458,0.7935965,219.43,219.36,7.51]
[1758614500755,6.94801148,219.42,219.36,7.51]
[1758614500960,6.94801148,219.41,219.35,0.03402659]
[1758614501163,6.94801148,219.4,219.35,0.03402659]
[1758614501362,3.73859905,219.39,219.35,0.03402659]
[1758614501563,0.7935965,219.43,219.36,7.51]
[1758614501763,6.95079329,219.42,219.36,7.51]
[1758614501962,6.95079329,219.41,219.36,7.51]
[1758614502266,6.95079329,219.4,219.35,0.03402659]
[1758614502456,6.95079329,219.39,219.36,7.51]
[1758614502656,0.7935965,219.43,219.35,4.13392659]
[1758614502859,6.95486122,219.42,219.36,7.51]
[1758614503052,6.95486122,219.41,219.37,4.0997]
[1758614503257,6.95486122,219.4,219.37,4.0997]
[1758614503562,6.95486122,219.39,219.38,7.51]
[1758614507173,6.95486122,219.39,219.35,7.54402659]
[1758614507364,6.95486122,219.38,219.35,7.54402659]
[1758614507566,6.95486122,219.37,219.35,7.54402659]
[1758614507767,0.93,219.44,219.35,0.03402659]
[1758614507968,0.93,219.42,219.35,0.03402659]
[1758614508165,10.70340675,219.41,219.35,0.03402659]
[1758614508471,0.93,219.39,219.35,0.03402659]
[1758614508674,0.93,219.37,219.35,0.03402659]
[1758614508974,7.85542779,219.36,219.35,0.03402659]
[1758614516574,6.92542779,219.36,219.35,0.03402659]
[1758614517084,6.92542779,219.36,219.35,7.54402659]
[1758614518780,6.92542779,219.36,219.35,0.03402659]
[1758614521785,7.84542779,219.36,219.35,0.03402659]
[1758614525396,7.84542779,219.36,219.22,156.051352]
[1758614525397,4.1005,219.33,219.23,7.23]
[1758614525695,7.84542779,219.32,219.23,7.23]
[1758614525997,10.7766057,219.31,219.23,7.23]
[1758614526196,10.7766057,219.3,219.23,7.23]
[1758614526496,10.7766057,219.29,219.23,7.23]
[1758614526797,6.92542779,219.28,219.24,7.23]
[1758614527000,3.21903711,219.27,219.23,7.23]
[1758614527192,3.21903711,219.26,219.22,92.236552]
[1758614527496,0.0338871,219.29,219.23,7.23]
[1758614527686,6.96857772,219.28,219.22,92.236552]
[1758614527885,3.23979005,219.27,219.25,4.1019]
[1758614528094,0.0338871,219.29,219.26,7.23]
[1758614528293,6.96792033,219.28,219.26,7.23]
[1758614528494,3.23913184,219.27,219.26,7.23]
[1758614528695,3.23913184,219.27,219.25,4.1019]
[1758614528898,3.23913184,219.26,219.23,7.23]
[1758614529098,3.23913184,219.25,219.17,7.23]
[1758614529298,0.9538871,219.29,219.17,7.23]
[1758614529299,3.23913184,219.24,219.17,7.23]
[1758614529493,3.23913184,219.23,219.17,7.23]
[1758614529694,3.23913184,219.22,219.17,7.23]
[1758614529893,0.03219774,219.23,219.17,7.23]
[1758614530094,0.03219774,219.23,219.21,11.3327]
[1758614530297,0.03219774,219.23,219.22,7.23]
[1758614530596,3.3421351,219.23,219.22,7.23]
[1758614530800,0.03219774,219.23,219.22,7.23]
[1758614533301,5.11379078,219.32,219.28,4.1014]
[1758614533498,7.67068617,219.35,219.29,7.23]
[1758614533499,7.02849844,219.31,219.29,7.23]
[1758614533702,3.3061252,219.3,219.29,7.23]
[1758614534098,0.95,219.37,219.29,7.23]
[1758614534299,10.86820088,219.36,219.29,7.23]
[1758614534597,7.97645019,219.35,219.31,0.0313801]
[1758614534899,3.30572446,219.34,219.31,0.0313801]
[1758614535105,3.30572446,219.33,219.32,7.23]
[1758614535805,3.30572446,219.33,219.32,11.3307]
[1758614536204,0.95,219.39,219.32,7.23]
[1758614536392,7.03180712,219.38,219.32,7.23]
[1758614536593,3.30486553,219.37,219.36,11.3299]
[1758614538102,6.553e-05,219.37,219.36,11.3299]
[1758614538303,0.95,219.44,219.38,4.0995]
[1758614538500,3.7252696,219.43,219.39,7.35]
[1758614538703,0.97,219.5,219.42,7.35]
[1758614538899,7.2013154,219.49,219.42,7.35]
[1758614539100,7.2013154,219.48,219.42,7.35]
[1758614539301,4.6942632,219.47,219.42,7.35]
[1758614539503,3.7242632,219.46,219.42,7.35]
[1758614539699,3.72337342,219.45,219.42,7.35]
[1758614539903,0.97,219.48,219.39,0.03288884]
[1758614540204,3.72344833,219.47,219.39,0.03288884]
[1758614540508,3.72344833,219.46,219.39,0.03288884]
[1758614540806,3.72264692,219.45,219.39,0.03288884]
[1758614541007,0.97,219.48,219.39,0.03288884]
[1758614541201,3.72264692,219.47,219.39,0.03288884]
[1758614541501,3.72264692,219.46,219.39,0.03288884]
[1758614541706,3.72264692,219.45,219.39,0.03288884]
[1758614541903,0.97,219.48,219.39,0.03288884]
[1758614542110,3.72187027,219.47,219.39,0.03288884]
[1758614542310,0.97,219.45,219.39,0.03288884]
[1758614542503,0.97,219.43,219.39,0.03288884]
[1758614543101,0.97,219.45,219.39,0.03288884]
[1758614543303,0.97,219.43,219.39,0.03288884]
[1758614543614,0.97,219.41,219.39,0.03288884]
[1758614544812,0.97,219.44,219.39,0.03288884]
[1758614545003,0.97,219.42,219.39,0.03288884]
[1758614545210,0.97,219.46,219.39,0.03288884]
[1758614545408,0.97,219.44,219.39,0.03288884]
[1758614545709,0.97,219.42,219.39,0.03288884]
[1758614546207,0.97,219.46,219.39,0.03288884]
[1758614546414,7.19442651,219.45,219.39,0.03288884]
[1758614546608,3.7212759,219.44,219.39,0.03288884]
[1758614546810,0.97,219.42,219.39,0.03288884]
[1758614547008,5.0682,219.46,219.39,0.03288884]
[1758614547212,3.72090698,219.45,219.39,0.03288884]
[1758614547412,3.72090698,219.44,219.4,7.35]
[1758614547609,0.97,219.46,219.4,7.35]
[1758614547915,3.72006967,219.45,219.39,7.38288884]
[1758614548120,0.97,219.46,219.39,7.38288884]
[1758614548309,3.72006967,219.45,219.39,7.38288884]
[1758614548615,0.97,219.46,219.39,7.38288884]
[1758614548816,3.71963642,219.45,219.39,11.48218884]
[1758614549016,0.97,219.46,219.39,11.48218884]
[1758614549211,3.7197869,219.45,219.39,11.48218884]
[1758614549411,0.97,219.46,219.39,11.48218884]
[1758614549609,3.71944581,219.45,219.39,11.48218884]
[1758614549809,0.97,219.46,219.39,7.38288884]
[1758614550012,3.71944581,219.45,219.39,7.38288884]
[1758614550206,7.00276392,219.44,219.4,7.35]
[1758614550412,3.28331811,219.43,219.4,7.35]
[1758614550607,3.28331811,219.42,219.39,0.03288884]
[1758614550807,0.97,219.46,219.4,7.38]
[1758614551010,7.00234295,219.45,219.39,7.41288884]
[1758614551210,3.28304867,219.44,219.4,7.38]
[1758614551411,3.28304867,219.43,219.4,7.38]
[1758614551608,0.97,219.46,219.4,7.38]
[1758614551915,7.00144754,219.45,219.39,7.41288884]
[1758614552109,0.97,219.46,219.39,7.41288884]
[1758614552110,3.28262404,219.44,219.39,0.03288884]
[1758614552412,3.28262404,219.43,219.39,0.03288884]
[1758614552715,0.97,219.46,219.4,7.38]
[1758614552915,3.28211893,219.45,219.39,7.41288884]
[1758614553106,3.28211893,219.44,219.39,0.03288884]
[1758614553310,3.28211893,219.43,219.39,0.03288884]
[1758614553512,0.97,219.46,219.4,7.38]
[1758614553809,3.28184736,219.45,219.39,7.41288884]
[1758614554016,3.28184736,219.44,219.4,7.38]
[1758614554218,3.28184736,219.43,219.4,7.38]
[1758614554416,0.96,219.46,219.4,7.38]
[1758614554606,3.28141394,219.45,219.39,7.41288884]
[1758614554807,0.96,219.46,219.39,7.41288884]
[1758614554808,0.96,219.43,219.39,0.03288884]
[1758614555012,3.28155468,219.42,219.39,0.03288884]
[1758614555317,0.96,219.45,219.39,0.03288884]
[1758614555513,3.28122698,219.44,219.39,0.03288884]
[1758614555712,3.28122698,219.43,219.39,7.41288884]
[1758614555912,5.0581,219.46,219.39,7.41288884]
[1758614556117,6.99844391,219.45,219.39,7.41288884]
[1758614556311,4.24122698,219.44,219.39,0.03288884]
[1758614556513,3.28122698,219.43,219.39,0.03288884]
[1758614556814,4.24098715,219.42,219.39,0.03288884]
[1758614557019,0.96,219.47,219.39,0.03288884]
[1758614557216,6.99778649,219.46,219.39,0.03288884]
[1758614557412,3.28090785,219.45,219.39,0.03288884]
[1758614557613,3.28090785,219.44,219.4,7.38]
[1758614557814,3.28090785,219.43,219.4,7.38]
[1758614558119,0.96,219.47,219.39,11.51208884]
[1758614558320,3.28042789,219.46,219.39,11.51208884]
[1758614558619,3.28042789,219.45,219.39,11.51208884]
[1758614558820,3.28042789,219.44,219.39,4.13208884]
[1758614559020,0.96,219.47,219.39,11.51208884]
[1758614559221,3.28618895,219.46,219.39,11.51208884]
[1758614559521,3.28618895,219.45,219.39,11.51208884]
[1758614559820,3.28618895,219.44,219.4,7.38]
[1758614560020,0.96,219.47,219.4,7.38]
[1758614560319,3.2859841,219.46,219.4,7.38]
[1758614560520,0.96,219.47,219.39,4.13208884]
[1758614560521,3.2859841,219.45,219.39,4.13208884]
[1758614560720,3.2859841,219.44,219.39,4.13208884]
[1758614560921,0.79338843,219.49,219.42,7.38]
[1758614561222,3.28512863,219.48,219.42,7.38]
[1758614561423,3.28512863,219.47,219.4,7.38]
[1758614561625,0.79338843,219.49,219.4,7.38]
[1758614561922,3.28466409,219.48,219.42,4.0986]
[1758614562113,3.28466409,219.47,219.42,4.0986]
[1758614562317,0.79338843,219.49,219.42,11.4786]
[1758614562512,3.28408849,219.48,219.42,11.4786]
[1758614562722,3.28408849,219.47,219.42,4.0986]
[1758614562931,5.0573,219.51,219.43,7.38]
[1758614563121,6.99764172,219.5,219.43,7.38]
[1758614563323,3.28408849,219.49,219.43,7.38]
[1758614563627,3.28408849,219.48,219.45,7.38]
[1758614563824,0.96,219.51,219.45,7.38]
[1758614564024,4.24350172,219.5,219.45,7.38]
[1758614564221,3.28350172,219.49,219.45,7.38]
[1758614564425,3.28350172,219.48,219.44,0.03186099]
[1758614564628,0.96,219.5,219.44,7.41186099]
[1758614564924,3.28296754,219.49,219.45,7.38]
[1758614565126,3.28296754,219.48,219.45,7.38]
[1758614565425,0.96,219.54,219.45,7.38]
[1758614565726,3.28248179,219.53,219.47,7.38]
[1758614565921,3.28248179,219.52,219.45,7.38]
[1758614566121,3.28248179,219.51,219.48,4.0975]
[1758614566316,0.96,219.58,219.49,7.38]
[1758614566521,6.97678599,219.57,219.49,7.38]
[1758614566719,6.97678599,219.56,219.49,7.38]
[1758614566925,3.28124297,219.55,219.51,0.03341675]
[1758614567131,0.96,219.61,219.52,7.38]
[1758614567316,4.0959,219.58,219.52,7.38]
[1758614567522,7.93095695,219.57,219.51,0.03341675]
[1758614567723,7.93095695,219.57,219.47,7.38]
[1758614567724,0.96,219.55,219.47,7.38]
[1758614567918,7.37483761,219.54,219.47,7.38]
[1758614568222,7.93154149,219.53,219.52,0.0334188]
[1758614568427,63.732,219.52,219.43,7.38]
[1758614568630,7.93154149,219.51,219.43,7.38]
[1758614568830,3.27823761,219.5,219.43,7.38]
[1758614570131,7.37563761,219.5,219.43,7.38]
[1758614570427,3.27823761,219.49,219.43,7.38]
[1758614570827,3.27949073,219.48,219.41,7.38]
[1758614571032,4.0974,219.5,219.41,7.38]
[1758614571223,0.03321053,219.48,219.41,7.38]
[1758614573028,0.03321053,219.48,219.42,4.0988]
[1758614573426,0.03321053,219.48,219.43,7.38]
[1758614573623,0.03321053,219.48,219.42,4.0988]
[1758614574829,0.03321053,219.48,219.4,7.38]
[1758614575129,3.28548415,219.47,219.4,7.38]
[1758614575322,3.28548415,219.46,219.4,7.38]
[1758614575528,0.03321053,219.48,219.4,7.38]
[1758614575830,3.2855797,219.47,219.4,7.38]
[1758614576026,3.2855797,219.46,219.4,7.38]
[1758614576226,3.2855797,219.45,219.39,4.0993]
[1758614576532,0.03321053,219.48,219.4,7.38]
[1758614576732,3.28789739,219.47,219.4,7.38]
[1758614577032,3.28789739,219.46,219.4,7.38]
[1758614577232,3.28789739,219.45,219.39,4.0993]
[1758614577433,3.28789739,219.44,219.39,4.0993]
[1758614577628,0.03321053,219.48,219.42,7.38]
[1758614577829,3.29060818,219.47,219.41,4.099]
[1758614578031,3.29060818,219.46,219.42,7.38]
[1758614578227,3.29060818,219.45,219.42,7.38]
[1758614578433,3.29060818,219.44,219.43,4.0986]
[1758614578739,3.29060818,219.45,219.38,63.7709]
[1758614579128,3.29060818,219.45,219.39,7.38]
[1758614579939,3.29060818,219.45,219.41,4.099]
[1758614580235,3.29060818,219.45,219.37,7.38]
[1758614580539,3.29060818,219.45,219.37,11.4796]
[1758614580835,75.20926584,219.44,219.31,7.0]
[1758614581029,0.96,219.42,219.31,7.0]
[1758614581237,7.00430473,219.41,219.33,7.0]
[1758614581433,7.00430473,219.4,219.33,7.0]
[1758614581635,7.03382501,219.39,219.33,7.0]
[1758614581832,7.03382501,219.39,219.32,7.0]
[1758614581833,3.29060818,219.38,219.32,7.0]
[1758614582338,3.29060818,219.38,219.34,4.1001]
[1758614582527,3.29060818,219.38,219.34,7.0]
[1758614582728,7.96673009,219.37,219.3,7.0]
[1758614583031,0.02952028,219.39,219.19,63.827]
[1758614583032,11.44907481,219.36,219.22,7.0]
[1758614583234,7.00673009,219.35,219.22,7.0]
[1758614583533,15.54754004,219.34,219.22,11.1024]
[1758614583837,15.54754004,219.34,219.23,7.0]
[1758614583838,0.03084749,219.31,219.23,7.0]
[1758614584038,3.29060818,219.3,219.24,4.1022]
[1758614584629,3.29060818,219.3,219.23,7.0]
[1758614585828,7.39170818,219.3,219.18,4.1032]
[1758614586130,7.9612492,219.29,219.19,7.0]
[1758614586340,6.99836991,219.28,219.19,7.0]
[1758614586540,0.03326988,219.26,219.19,7.0]
[1758614586742,3.29060818,219.25,219.19,7.0]
[1758614588133,3.29060818,219.25,219.15,11.1037]
[1758614588634,3.29060818,219.25,219.18,7.0]
[1758614589237,0.03326988,219.26,219.18,7.0]
[1758614589837,0.03326988,219.26,219.2,70.8236]
[1758614590040,0.03326988,219.26,219.21,7.0]
[1758614590242,0.03326988,219.26,219.23,7.0]
[1758614590540,0.03326988,219.26,219.23,4.1024]
[1758614590737,0.03326988,219.26,219.23,63.8143]
[1758614590937,0.03326988,219.26,219.25,11.102]
[1758614591149,0.96,219.35,219.26,7.0]
[1758614591545,0.96,219.35,219.27,63.8036]
[1758614591742,0.96,219.35,219.28,7.0]
[1758614592540,5.11379078,219.44,219.32,7.0]
[1758614592741,3.27705168,219.43,219.32,7.0]
[1758614592940,7.67068617,219.49,219.32,7.0]
[1758614592941,3.27705168,219.42,219.32,7.0]
[1758614593142,4.26705168,219.41,219.32,7.0]
[1758614593340,3.27705168,219.4,219.35,0.02923991]
[1758614593545,4.26705168,219.39,219.35,0.02923991]
[1758614593745,0.99,219.39,219.35,0.02923991]
[1758614594545,0.99,219.47,219.35,7.02923991]
[1758614594744,0.99,219.45,219.35,7.02923991]
[1758614594946,3.27621341,219.44,219.35,7.02923991]
[1758614595252,3.27621341,219.43,219.36,4.0999]
[1758614595550,3.27621341,219.42,219.38,7.0]
[1758614595744,68.85249078,219.5,219.38,7.0]
[1758614595947,0.99,219.48,219.38,7.0]
[1758614596137,0.99,219.46,219.38,7.0]
[1758614596343,3.27582203,219.45,219.38,7.0]
[1758614596547,0.99,219.44,219.41,0.03022299]
[1758614596950,4.26557983,219.43,219.41,0.03022299]
[1758614597243,0.99,219.43,219.41,0.03022299]
[1758614597852,0.99,219.44,219.41,0.03022299]
[1758614598040,0.99,219.42,219.41,0.03022299]
[1758614598349,4.26581514,219.42,219.3,7.0]
[1758614598550,4.26581514,219.41,219.3,7.0]
[1758614598749,3.27581514,219.4,219.3,7.0]
[1758614599351,7.37501514,219.4,219.3,7.0]
[1758614599550,3.27581514,219.39,219.3,7.0]
[1758614599752,3.27581514,219.39,219.3,11.101]
[1758614599954,0.0316477,219.37,219.3,11.101]
[1758614602453,0.0316477,219.37,219.32,4.1007]
[1758614602655,0.0316477,219.37,219.33,7.28]
[1758614603146,0.0316477,219.37,219.29,11.3811]
[1758614603745,0.0316477,219.37,219.3,7.28]
[1758614603945,0.0316477,219.37,219.32,7.28]
[1758614604258,0.0316477,219.37,219.31,11.3808]
[1758614605954,0.0316477,219.37,219.31,7.28]
[1758614606164,3.27617599,219.36,219.21,7.28]
[1758614606356,1.01,219.34,219.21,7.28]
[1758614606665,1.01,219.32,219.21,7.28]
[1758614606860,3.27617599,219.31,219.21,7.28]